fUST/lending_fUST_20250520
["ID","MTS","AMOUNT","RATE_DAILY","PERIOD"]
[361668436,1747678263985,-160.0,0.00019346,2]
[361668437,1747678263994,-160.0,0.00019346,2]
[361668438,1747678264004,-160.0,0.00019346,2]
[361668439,1747678264013,-998.68447496,0.00019346,2]
[361668440,1747678264023,-212.35735062,0.00019346,2]
[361668441,1747678264032,-160.0,0.00019346,2]
[361668442,1747678264042,-422.59250115,0.00019346,2]
[361668443,1747678264052,-160.0,0.00019346,2]
[361668444,1747678264062,-160.0,0.00019346,2]
[361668445,1747678264071,-245.199336,0.00019387,2]
[361668446,1747678264081,-245.199332,0.00019387,2]
[361668447,1747678264091,-762.60877,0.00019387,2]
[361668448,1747678264100,-500.0,0.00019397,2]
[361668449,1747678264110,-500.0,0.00019397,2]
[361668450,1747678264120,-500.0,0.00019397,2]
[361668451,1747678264129,-500.0,0.00019397,2]
[361668452,1747678264139,-500.0,0.00019397,2]
[361668453,1747678264148,-500.0,0.00019397,2]
[361668454,1747678264158,-500.0,0.00019397,2]
[361668455,1747678264167,-500.0,0.00019397,2]
[361668456,1747678264177,-500.0,0.00019397,2]
[361668457,1747678264186,-500.0,0.00019397,2]
[361668458,1747678264197,-500.0,0.00019397,2]
[361668459,1747678264206,-500.0,0.00019397,2]
[361668460,1747678264216,-369.75747232,0.00019397,2]
[361668461,1747678264225,-151.0,0.00019452,2]
[361668462,1747678264237,-151.0,0.00019452,2]
[361668463,1747678264247,-151.0,0.00019452,2]
[361668464,1747678264257,-230.704725,0.00019452,2]
[361668465,1747678264267,-230.704725,0.00019452,2]
[361668466,1747678264277,-230.704725,0.00019452,2]
[361668467,1747678264288,-230.704725,0.00019452,2]
[361668468,1747678264298,-226.524601,0.00019452,2]
[361668469,1747678264307,-226.524601,0.00019452,2]
[361668470,1747678264317,-226.524601,0.00019452,2]
[361668471,1747678264326,-226.524605,0.00019452,2]
[361668472,1747678264336,-151.0,0.00019452,2]
[361668473,1747678264345,-430.0,0.00019452,2]
[361668474,1747678264369,-430.0,0.00019452,2]
[361668475,1747678264378,-430.0,0.00019452,2]
[361668476,1747678264392,-499.51,0.00019452,2]
[361668477,1747678264401,-430.0,0.00019452,2]
[361668478,1747678264411,-430.0,0.00019452,2]
[361668479,1747678264421,-393.05274118,0.00019452,2]
[361668480,1747678264432,-430.0,0.00019452,2]
[361668481,1747678264441,-686.82,0.00019452,2]
[361668482,1747678264451,-430.0,0.00019452,2]
[361668483,1747678264461,-265.945672,0.00019452,2]
[361668484,1747678264470,-430.0,0.00019452,2]
[361668485,1747678264482,-269.15516053,0.00019452,2]
[361668486,1747678264491,-175.11996591,0.00019452,2]
[361668487,1747678264501,-776.59,0.00019452,2]
[361668488,1747678264510,-430.0,0.00019452,2]
[361668489,1747678264520,-430.0,0.00019452,2]
[361668490,1747678264530,-430.0,0.00019452,2]
[361668491,1747678264540,-430.0,0.00019452,2]
[361668492,1747678264549,-681.39,0.00019452,2]
[361668493,1747678264559,-203.50747868,0.00019452,2]
[361668494,1747678264570,-485.07919803,0.00019452,2]
[361668495,1747678264580,-430.0,0.00019452,2]
[361668496,1747678264590,-430.0,0.00019452,2]
[361668497,1747678264601,-516.86,0.00019452,2]
[361668498,1747678264611,-629.1,0.00019452,2]
[361668499,1747678264621,-430.0,0.00019452,2]
[361668500,1747678264630,-430.0,0.00019452,2]
[361668501,1747678264640,-484.55809472,0.00019452,2]
[361668502,1747678264650,-1132.44,0.00019452,2]
[361668503,1747678264659,-430.0,0.00019452,2]
[361668504,1747678264671,-852.15,0.00019452,2]
[361668505,1747678264680,-511.22281972,0.00019452,2]
[361668506,1747678264689,-497.33514603,0.00019452,2]
[361668507,1747678264699,-605.64,0.00019452,2]
[361668508,1747678264709,-875.09,0.00019452,2]
[361668509,1747678264720,-430.0,0.00019452,2]
[361668510,1747678264729,-375.65299628,0.00019452,2]
[361668511,1747678264739,-430.0,0.00019452,2]
[361668512,1747678264749,-430.0,0.00019452,2]
[361668513,1747678264758,-355.16316267,0.00019452,2]
[361668514,1747678264768,-486.97472081,0.00019452,2]
[361668515,1747678264778,-430.0,0.00019452,2]
[361668516,1747678264787,-545.76,0.00019452,2]
[361668517,1747678264796,-430.0,0.00019452,2]
[361668518,1747678264809,-430.0,0.00019452,2]
[361668519,1747678264818,-430.0,0.00019452,2]
[361668520,1747678264827,-430.0,0.00019452,2]
[361668521,1747678264836,-430.0,0.00019452,2]
[361668522,1747678264846,-671.94,0.00019452,2]
[361668523,1747678264856,-430.0,0.00019452,2]
[361668524,1747678264867,-701.04,0.00019452,2]
[361668525,1747678264877,-430.0,0.00019452,2]
[361668526,1747678264886,-430.0,0.00019452,2]
[361668527,1747678264896,-430.0,0.00019452,2]
[361668528,1747678264905,-575.34,0.00019452,2]
[361668529,1747678264914,-430.0,0.00019452,2]
[361668530,1747678264924,-433.77,0.00019452,2]
[361668531,1747678264934,-430.0,0.00019452,2]
[361668532,1747678264945,-430.0,0.00019452,2]
[361668533,1747678264954,-476.30935468,0.00019452,2]
[361668534,1747678264963,-430.0,0.00019452,2]
[361668535,1747678264972,-430.0,0.00019452,2]
[361668536,1747678264983,-469.43315265,0.00019452,2]
[361668537,1747678264992,-446.59089804,0.00019452,2]
[361668538,1747678265003,-430.0,0.00019452,2]
[361668539,1747678265013,-430.0,0.00019452,2]
[361668540,1747678265022,-439.55,0.00019452,2]
[361668541,1747678265032,-430.0,0.00019452,2]
[361668542,1747678265042,-430.0,0.00019452,2]
[361668543,1747678265052,-218.89704424,0.00019452,2]
[361668544,1747678265061,-451.43,0.00019452,2]
[361668545,1747678265070,-430.0,0.00019452,2]
[361668546,1747678265079,-745.65,0.00019452,2]
[361668547,1747678265089,-430.0,0.00019452,2]
[361668548,1747678265098,-430.0,0.00019452,2]
[361668549,1747678265107,-430.0,0.00019452,2]
[361668550,1747678265117,-430.0,0.00019452,2]
[361668551,1747678265127,-305.49788828,0.00019452,2]
[361668552,1747678265137,-430.0,0.00019452,2]
[361668553,1747678265146,-430.0,0.00019452,2]
[361668554,1747678265155,-430.0,0.00019452,2]
[361668555,1747678265165,-430.0,0.00019452,2]
[361668556,1747678265175,-430.0,0.00019452,2]
[361668557,1747678265184,-438.7,0.00019452,2]
[361668558,1747678265193,-434.58,0.00019452,2]
[361668559,1747678265202,-196.13084289,0.00019452,2]
[361668560,1747678265211,-356.23561007,0.00019452,2]
[361668561,1747678265220,-430.0,0.00019452,2]
[361668562,1747678265232,-430.0,0.00019452,2]
[361668563,1747678265241,-1375.68,0.00019452,2]
[361668564,1747678265250,-430.0,0.00019452,2]
[361668565,1747678265259,-430.0,0.00019452,2]
[361668566,1747678265269,-430.0,0.00019452,2]
[361668567,1747678265278,-551.59,0.00019452,2]
[361668568,1747678265287,-430.0,0.00019452,2]
[361668569,1747678265296,-287.45481803,0.00019452,2]
[361668570,1747678265306,-430.0,0.00019452,2]
[361668571,1747678265315,-430.0,0.00019452,2]
[361668572,1747678265324,-430.0,0.00019452,2]
[361668573,1747678265333,-430.0,0.00019452,2]
[361668574,1747678265343,-530.62,0.00019452,2]
[361668575,1747678265364,-430.0,0.00019452,2]
[361668576,1747678265374,-2065.45,0.00019452,2]
[361668577,1747678265390,-153.86057168,0.00019452,2]
[361668578,1747678265399,-430.0,0.00019452,2]
[361668579,1747678265407,-262.12205756,0.00019452,2]
[361668580,1747678265416,-434.51731657,0.00019452,2]
[361668581,1747678265425,-430.0,0.00019452,2]
[361668582,1747678265435,-430.0,0.00019452,2]
[361668583,1747678265443,-430.0,0.00019452,2]
[361668584,1747678265452,-2491.97,0.00019452,2]
[361668585,1747678265461,-864.52,0.00019452,2]
[361668586,1747678265470,-430.0,0.00019452,2]
[361668587,1747678265480,-637.32,0.00019452,2]
[361668588,1747678265490,-1871.71,0.00019452,2]
[361668589,1747678265499,-430.0,0.00019452,2]
[361668590,1747678265508,-430.0,0.00019452,2]
[361668591,1747678265517,-4063.35,0.00019452,2]
[361668592,1747678265526,-430.0,0.00019452,2]
[361668593,1747678265536,-430.0,0.00019452,2]
[361668594,1747678265545,-685.18,0.00019452,2]
[361668595,1747678265554,-430.0,0.00019452,2]
[361668596,1747678265563,-817.13,0.00019452,2]
[361668597,1747678265572,-430.0,0.00019452,2]
[361668598,1747678265581,-430.0,0.00019452,2]
[361668599,1747678265590,-5294.37,0.00019452,2]
[361668600,1747678265599,-534.03,0.00019452,2]
[361668601,1747678265609,-430.0,0.00019452,2]
[361668602,1747678265618,-430.0,0.00019452,2]
[361668603,1747678265627,-566.9,0.00019452,2]
[361668604,1747678265636,-430.0,0.00019452,2]
[361668605,1747678265646,-2065.21,0.00019452,2]
[361668606,1747678265656,-537.77,0.00019452,2]
[361668607,1747678265665,-430.0,0.00019452,2]
[361668608,1747678265674,-430.0,0.00019452,2]
[361668609,1747678265684,-430.0,0.00019452,2]
[361668610,1747678265693,-4975.86,0.00019452,2]
[361668611,1747678265703,-430.0,0.00019452,2]
[361668612,1747678265712,-835.39,0.00019452,2]
[361668613,1747678265722,-430.0,0.00019452,2]
[361668614,1747678265731,-1400.2,0.00019452,2]
[361668615,1747678265742,-1314.62,0.00019452,2]
[361668616,1747678265751,-1072.15,0.00019452,2]
[361668617,1747678265761,-1095.34,0.00019452,2]
[361668618,1747678265770,-430.0,0.00019452,2]
[361668619,1747678265780,-1638.88,0.00019452,2]
[361668620,1747678265789,-430.0,0.00019452,2]
[361668621,1747678265799,-1009.6,0.00019452,2]
[361668622,1747678265813,-430.0,0.00019452,2]
[361668623,1747678265822,-656.69,0.00019452,2]
[361668624,1747678265832,-7287.93,0.00019452,2]
[361668625,1747678265843,-430.0,0.00019452,2]
[361668626,1747678265852,-1675.27,0.00019452,2]
[361668627,1747678265862,-430.0,0.00019452,2]
[361668628,1747678265874,-582.76,0.00019452,2]
[361668629,1747678265886,-4789.9,0.00019452,2]
[361668630,1747678265896,-430.0,0.00019452,2]
[361668631,1747678265906,-430.0,0.00019452,2]
[361668632,1747678265916,-430.0,0.00019452,2]
[361668633,1747678265925,-1475.08,0.00019452,2]
[361668634,1747678265934,-430.0,0.00019452,2]
[361668635,1747678265943,-3802.2,0.00019452,2]
[361668636,1747678265953,-441.87,0.00019452,2]
[361668637,1747678265962,-2022.39,0.00019452,2]
[361668638,1747678265973,-254.69131213,0.00019452,2]
[361668639,1747678265983,-430.0,0.00019452,2]
[361668640,1747678265992,-3870.66,0.00019452,2]
[361668641,1747678266001,-4521.89,0.00019452,2]
[361668642,1747678266010,-430.0,0.00019452,2]
[361668643,1747678266020,-430.0,0.00019452,2]
[361668644,1747678266030,-623.36,0.00019452,2]
[361668645,1747678266040,-565.34436985,0.00019452,2]
[361668646,1747678266049,-430.0,0.00019452,2]
[361668647,1747678266058,-1455.67,0.00019452,2]
[361668648,1747678266068,-1638.01,0.00019452,2]
[361668649,1747678266078,-542.53,0.00019452,2]
[361668650,1747678266087,-861.13,0.00019452,2]
[361668651,1747678266096,-430.0,0.00019452,2]
[361668652,1747678266106,-735.09,0.00019452,2]
[361668653,1747678266115,-430.0,0.00019452,2]
[361668654,1747678266124,-430.0,0.00019452,2]
[361668655,1747678266133,-446.73,0.00019452,2]
[361668656,1747678266143,-430.0,0.00019452,2]
[361668657,1747678266152,-906.22,0.00019452,2]
[361668658,1747678266162,-430.0,0.00019452,2]
[361668659,1747678266171,-430.0,0.00019452,2]
[361668660,1747678266180,-2900.95,0.00019452,2]
[361668661,1747678266190,-430.0,0.00019452,2]
[361668662,1747678266199,-430.0,0.00019452,2]
[361668663,1747678266208,-668.98,0.00019452,2]
[361668664,1747678266217,-806.41,0.00019452,2]
[361668665,1747678266226,-430.0,0.00019452,2]
[361668666,1747678266238,-430.0,0.00019452,2]
[361668667,1747678266247,-430.0,0.00019452,2]
[361668668,1747678266256,-515.16774619,0.00019452,2]
[361668669,1747678266265,-853.48,0.00019452,2]
[361668670,1747678266274,-1223.52,0.00019452,2]
[361668671,1747678266283,-430.0,0.00019452,2]
[361668672,1747678266292,-996.23,0.00019452,2]
[361668673,1747678266302,-500.0,0.00019452,2]
[361668674,1747678266422,-1390.5,0.00019452,2]
[361668675,1747678266434,-430.0,0.00019452,2]
[361668676,1747678266443,-430.0,0.00019452,2]
[361668677,1747678266453,-430.0,0.00019452,2]
[361668678,1747678266462,-430.0,0.00019452,2]
[361668679,1747678266471,-430.0,0.00019452,2]
[361668680,1747678266482,-1409.57,0.00019452,2]
[361668681,1747678266492,-430.0,0.00019452,2]
[361668682,1747678266501,-430.0,0.00019452,2]
[361668683,1747678266511,-2124.49,0.00019452,2]
[361668684,1747678266521,-701.29,0.00019452,2]
[361668685,1747678266530,-501.83,0.00019452,2]
[361668686,1747678266539,-1561.15,0.00019452,2]
[361668687,1747678266549,-441.96,0.00019452,2]
[361668688,1747678266558,-899.12,0.00019452,2]
[361668689,1747678266567,-1104.97,0.00019452,2]
[361668690,1747678266577,-430.0,0.00019452,2]
[361668691,1747678266588,-430.0,0.00019452,2]
[361668692,1747678266597,-2522.44,0.00019452,2]
[361668693,1747678266607,-430.0,0.00019452,2]
[361668694,1747678266616,-468.08,0.00019452,2]
[361668695,1747678266626,-2904.2,0.00019452,2]
[361668696,1747678266635,-478.87,0.00019452,2]
[361668697,1747678266644,-1119.33,0.00019452,2]
[361668698,1747678266654,-561.73,0.00019452,2]
[361668699,1747678266663,-1123.5,0.00019452,2]
[361668700,1747678266672,-926.76,0.00019452,2]
[361668701,1747678266682,-1799.58,0.00019452,2]
[361668702,1747678266691,-2130.66,0.00019452,2]
[361668703,1747678266700,-430.0,0.00019452,2]
[361668704,1747678266710,-430.0,0.00019452,2]
[361668705,1747678266719,-430.0,0.00019452,2]
[361668706,1747678266728,-510.7,0.00019452,2]
[361668707,1747678266738,-430.0,0.00019452,2]
[361668708,1747678266748,-430.0,0.00019452,2]
[361668709,1747678266758,-1184.09,0.00019452,2]
[361668710,1747678266767,-429.05150454,0.00019452,2]
[361668711,1747678266776,-430.0,0.00019452,2]
[361668712,1747678266786,-736.8,0.00019452,2]
[361668713,1747678266796,-430.0,0.00019452,2]
[361668714,1747678266808,-581.31,0.00019452,2]
[361668715,1747678266818,-752.45,0.00019452,2]
[361668716,1747678266827,-695.3,0.00019452,2]
[361668717,1747678266836,-716.17,0.00019452,2]
[361668718,1747678266846,-1529.7,0.00019452,2]
[361668719,1747678266856,-178.76184542,0.00019468,2]
[361668720,1747678266867,-1500.0,0.00019468,2]
[361668721,1747678266879,-1003.47608848,0.00019468,2]
[361668722,1747678266888,-1500.0,0.00019468,2]
[361668723,1747678266898,-1500.0,0.00019468,2]
[361668724,1747678266908,-611.68318317,0.00019468,2]
[361668725,1747678266917,-1000.82642928,0.00019468,2]
[361668726,1747678266927,-1500.0,0.00019468,2]
[361668727,1747678266937,-1500.0,0.00019468,2]
[361668728,1747678266946,-1500.0,0.00019468,2]
[361668729,1747678266956,-2000.0,0.000195,3]
[361668730,1747678266966,-1000.0,0.00019521,2]
[361668731,1747678266976,-1000.0,0.00019521,2]
[361668732,1747678266988,-500.0,0.00019524,2]
[361668733,1747678266998,-500.0,0.00019524,2]
[361668734,1747678267007,-500.13123353,0.00019524,2]
[361668735,1747678267017,-151.0,0.00019563,2]
[361668736,1747678267026,-4854.67001534,0.0001959,2]
[361668737,1747678267036,-823.0,0.00019663,2]
[361668738,1747678267046,-500.0,0.000197,2]
[361668739,1747678267056,-501.29901026,0.000197,2]
[361668740,1747678267065,-438.58728678,0.000197,2]
[361668741,1747678267075,-500.38063921,0.000197,2]
[361668742,1747678267084,-500.0,0.000197,2]
[361668743,1747678267094,-500.0,0.000197,2]
[361668744,1747678267103,-500.0,0.000197,2]
[361668745,1747678267113,-500.0,0.000197,2]
[361668746,1747678267123,-500.0,0.000197,2]
[361668747,1747678267132,-500.0,0.000197,2]
[361668748,1747678267142,-500.0,0.000197,2]
[361668749,1747678267152,-163.03051647,0.00019721,2]
[361668750,1747678267162,-151.0,0.00019726,2]
[361668751,1747678267171,-160.711953,0.00019726,2]
[361668752,1747678267181,-151.0,0.00019726,2]
[361668753,1747678267190,-230.704725,0.00019726,2]
[361668754,1747678267200,-230.704725,0.00019726,2]
[361668755,1747678267210,-430.0,0.00019726,2]
[361668756,1747678267219,-393.06839772,0.00019726,2]
[361668757,1747678267228,-430.0,0.00019726,2]
[361668758,1747678267246,-499.51,0.00019726,2]
[361668759,1747678267260,-430.0,0.00019726,2]
[361668760,1747678267270,-430.0,0.00019726,2]
[361668761,1747678267280,-375.99005665,0.00019726,2]
[361668762,1747678267289,-686.82,0.00019726,2]
[361668763,1747678267301,-430.0,0.00019726,2]
[361668764,1747678267310,-430.0,0.00019726,2]
[361668765,1747678267320,-776.59,0.00019726,2]
[361668766,1747678267331,-430.0,0.00019726,2]
[361668767,1747678267342,-430.0,0.00019726,2]
[361668768,1747678267352,-430.0,0.00019726,2]
[361668769,1747678267362,-305.84443618,0.00019726,2]
[361668770,1747678267372,-681.39,0.00019726,2]
[361668771,1747678267382,-430.0,0.00019726,2]
[361668772,1747678267392,-430.0,0.00019726,2]
[361668773,1747678267402,-516.86,0.00019726,2]
[361668774,1747678267412,-629.1,0.00019726,2]
[361668775,1747678267422,-430.0,0.00019726,2]
[361668776,1747678267431,-430.0,0.00019726,2]
[361668777,1747678267441,-1132.44,0.00019726,2]
[361668778,1747678267450,-430.0,0.00019726,2]
[361668779,1747678267460,-852.15,0.00019726,2]
[361668780,1747678267469,-875.09,0.00019726,2]
[361668781,1747678267479,-430.0,0.00019726,2]
[361668782,1747678267489,-605.64,0.00019726,2]
[361668783,1747678267499,-430.0,0.00019726,2]
[361668784,1747678267508,-430.0,0.00019726,2]
[361668785,1747678267518,-430.0,0.00019726,2]
[361668786,1747678267528,-545.76,0.00019726,2]
[361668787,1747678267537,-430.0,0.00019726,2]
[361668788,1747678267547,-430.0,0.00019726,2]
[361668789,1747678267557,-255.1004742,0.00019726,2]
[361668790,1747678267567,-430.0,0.00019726,2]
[361668791,1747678267576,-430.0,0.00019726,2]
[361668792,1747678267586,-671.94,0.00019726,2]
[361668793,1747678267596,-419.78813567,0.00019726,2]
[361668794,1747678267606,-701.04,0.00019726,2]
[361668795,1747678267615,-430.0,0.00019726,2]
[361668796,1747678267625,-248.32851768,0.00019726,2]
[361668797,1747678267634,-430.0,0.00019726,2]
[361668798,1747678267644,-575.34,0.00019726,2]
[361668799,1747678267653,-430.0,0.00019726,2]
[361668800,1747678267663,-433.77,0.00019726,2]
[361668801,1747678267672,-430.0,0.00019726,2]
[361668802,1747678267682,-430.0,0.00019726,2]
[361668803,1747678267691,-430.0,0.00019726,2]
[361668804,1747678267701,-209.08351941,0.00019726,2]
[361668805,1747678267710,-430.0,0.00019726,2]
[361668806,1747678267720,-430.0,0.00019726,2]
[361668807,1747678267729,-439.55,0.00019726,2]
[361668808,1747678267740,-554.54918552,0.00019726,2]
[361668809,1747678267750,-430.0,0.00019726,2]
[361668810,1747678267759,-451.43,0.00019726,2]
[361668811,1747678267769,-430.0,0.00019726,2]
[361668812,1747678267779,-745.65,0.00019726,2]
[361668813,1747678267788,-430.0,0.00019726,2]
[361668814,1747678267798,-415.33361957,0.00019726,2]
[361668815,1747678267811,-430.0,0.00019726,2]
[361668816,1747678267820,-430.0,0.00019726,2]
[361668817,1747678267830,-430.0,0.00019726,2]
[361668818,1747678267839,-430.0,0.00019726,2]
[361668819,1747678267849,-430.0,0.00019726,2]
[361668820,1747678267859,-430.0,0.00019726,2]
[361668821,1747678267869,-438.7,0.00019726,2]
[361668822,1747678267879,-434.58,0.00019726,2]
[361668823,1747678267889,-430.0,0.00019726,2]
[361668824,1747678267899,-430.0,0.00019726,2]
[361668825,1747678267909,-1375.68,0.00019726,2]
[361668826,1747678267919,-430.0,0.00019726,2]
[361668827,1747678267929,-430.0,0.00019726,2]
[361668828,1747678267938,-430.0,0.00019726,2]
[361668829,1747678267947,-551.59,0.00019726,2]
[361668830,1747678267957,-430.0,0.00019726,2]
[361668831,1747678267967,-430.0,0.00019726,2]
[361668832,1747678267982,-430.0,0.00019726,2]
[361668833,1747678267992,-430.0,0.00019726,2]
[361668834,1747678268001,-430.0,0.00019726,2]
[361668835,1747678268011,-530.62,0.00019726,2]
[361668836,1747678268020,-430.0,0.00019726,2]
[361668837,1747678268030,-2065.45,0.00019726,2]
[361668838,1747678268039,-430.0,0.00019726,2]
[361668839,1747678268049,-253.62247145,0.00019726,2]
[361668840,1747678268058,-430.0,0.00019726,2]
[361668841,1747678268067,-430.0,0.00019726,2]
[361668842,1747678268077,-2491.97,0.00019726,2]
[361668843,1747678268087,-864.52,0.00019726,2]
[361668844,1747678268096,-430.0,0.00019726,2]
[361668845,1747678268105,-637.32,0.00019726,2]
[361668846,1747678268115,-1871.71,0.00019726,2]
[361668847,1747678268125,-430.0,0.00019726,2]
[361668848,1747678268134,-301.93181415,0.00019726,2]
[361668849,1747678268144,-4063.35,0.00019726,2]
[361668850,1747678268153,-430.0,0.00019726,2]
[361668851,1747678268163,-430.0,0.00019726,2]
[361668852,1747678268172,-685.18,0.00019726,2]
[361668853,1747678268181,-430.0,0.00019726,2]
[361668854,1747678268191,-817.13,0.00019726,2]
[361668855,1747678268200,-430.0,0.00019726,2]
[361668856,1747678268210,-430.0,0.00019726,2]
[361668857,1747678268220,-5294.37,0.00019726,2]
[361668858,1747678268230,-534.03,0.00019726,2]
[361668859,1747678268240,-430.0,0.00019726,2]
[361668860,1747678268249,-430.0,0.00019726,2]
[361668861,1747678268259,-566.9,0.00019726,2]
[361668862,1747678268268,-430.0,0.00019726,2]
[361668863,1747678268278,-2065.21,0.00019726,2]
[361668864,1747678268288,-537.77,0.00019726,2]
[361668865,1747678268297,-321.81253736,0.00019726,2]
[361668866,1747678268307,-430.0,0.00019726,2]
[361668867,1747678268316,-430.0,0.00019726,2]
[361668868,1747678268325,-4975.86,0.00019726,2]
[361668869,1747678268335,-430.0,0.00019726,2]
[361668870,1747678268344,-835.39,0.00019726,2]
[361668871,1747678268371,-430.0,0.00019726,2]
[361668872,1747678268380,-1400.2,0.00019726,2]
[361668873,1747678268390,-1314.62,0.00019726,2]
[361668874,1747678268401,-1072.15,0.00019726,2]
[361668875,1747678268411,-1095.34,0.00019726,2]
[361668876,1747678268421,-430.0,0.00019726,2]
[361668877,1747678268431,-1638.88,0.00019726,2]
[361668878,1747678268441,-430.0,0.00019726,2]
[361668879,1747678268451,-1009.6,0.00019726,2]
[361668880,1747678268460,-430.0,0.00019726,2]
[361668881,1747678268470,-656.69,0.00019726,2]
[361668882,1747678268480,-7287.93,0.00019726,2]
[361668883,1747678268489,-430.0,0.00019726,2]
[361668884,1747678268499,-1675.27,0.00019726,2]
[361668885,1747678268509,-430.0,0.00019726,2]
[361668886,1747678268519,-582.76,0.00019726,2]
[361668887,1747678268529,-4789.9,0.00019726,2]
[361668888,1747678268538,-357.83625867,0.00019726,2]
[361668889,1747678268547,-430.0,0.00019726,2]
[361668890,1747678268557,-430.0,0.00019726,2]
[361668891,1747678268567,-1475.08,0.00019726,2]
[361668892,1747678268576,-430.0,0.00019726,2]
[361668893,1747678268586,-3802.2,0.00019726,2]
[361668894,1747678268595,-441.87,0.00019726,2]
[361668895,1747678268605,-2022.39,0.00019726,2]
[361668896,1747678268614,-430.0,0.00019726,2]
[361668897,1747678268771,-3870.66,0.00019726,2]
[361668898,1747678268782,-4521.89,0.00019726,2]
[361668899,1747678268791,-430.0,0.00019726,2]
[361668900,1747678268805,-430.0,0.00019726,2]
[361668901,1747678268814,-623.36,0.00019726,2]
[361668902,1747678268824,-1455.67,0.00019726,2]
[361668903,1747678268833,-430.0,0.00019726,2]
[361668904,1747678268844,-1638.01,0.00019726,2]
[361668905,1747678268854,-542.53,0.00019726,2]
[361668906,1747678268863,-861.13,0.00019726,2]
[361668907,1747678268872,-430.0,0.00019726,2]
[361668908,1747678268882,-735.09,0.00019726,2]
[361668909,1747678268891,-430.0,0.00019726,2]
[361668910,1747678268901,-339.74796801,0.00019726,2]
[361668911,1747678268910,-446.73,0.00019726,2]
[361668912,1747678268922,-430.0,0.00019726,2]
[361668913,1747678268932,-906.22,0.00019726,2]
[361668914,1747678268942,-430.0,0.00019726,2]
[361668915,1747678268951,-430.0,0.00019726,2]
[361668916,1747678268961,-2900.95,0.00019726,2]
[361668917,1747678268970,-430.0,0.00019726,2]
[361668918,1747678268980,-430.0,0.00019726,2]
[361668919,1747678268991,-668.98,0.00019726,2]
[361668920,1747678269000,-806.41,0.00019726,2]
[361668921,1747678269010,-430.0,0.00019726,2]
[361668922,1747678269020,-430.0,0.00019726,2]
[361668923,1747678269030,-430.0,0.00019726,2]
[361668924,1747678269039,-853.48,0.00019726,2]
[361668925,1747678269048,-1223.52,0.00019726,2]
[361668926,1747678269057,-430.0,0.00019726,2]
[361668927,1747678269066,-996.23,0.00019726,2]
[361668928,1747678269075,-219.92271633,0.00019726,2]
[361668929,1747678269085,-1390.5,0.00019726,2]
[361668930,1747678269094,-430.0,0.00019726,2]
[361668931,1747678269103,-430.0,0.00019726,2]
[361668932,1747678269112,-430.0,0.00019726,2]
[361668933,1747678269121,-430.0,0.00019726,2]
[361668934,1747678269131,-430.0,0.00019726,2]
[361668935,1747678269139,-1409.57,0.00019726,2]